[Event "44th Chess Olympiad Women 2022"]
[Site "Chennai"]
[Date "2022.08.05"]
[Round "7.17"]
[White "Steffensen, Elena"]
[Black "Varney, Zoe"]
[Result "0-1"]
[ECO "C56"]
[WhiteElo "2044"]
[BlackElo "2045"]
[Annotator "TA"]
[PlyCount "112"]
[EventDate "2022.07.29"]
[EventType "team-tourn"]
[EventCountry "IND"]
[SourceTitle "playchess.com"]
[Source "ChessBase"]
[SourceQuality "1"]
[WhiteTeam "Denmark"]
[BlackTeam "England"]
[WhiteTeamCountry "DEN"]
[BlackTeamCountry "ENG"]
[TimeControl "40/5400+30:1800+30"]

{[%evp 11,112,10,17,10,12,-16,-6,-3,-10,-2,0,0,1,8,46,0,0,-14,-13,-28,0,-5,-10,-63,0,0,0,-2,0,-63,-65,-93,0,0,0,0,0,-8,-13,-52,-6,-75,0,-99,-102,-104,-109,-158,-89,-89,-89,-86,-91,-128,-125,-119,-120,-254,-243,-265,-204,-195,-199,-209,-26,-22,-22,-112,-78,-78,-78,-1608,-1438,-1146,-1150,-1043,-1029,-29950,-29955,-1979,-1352,-1193,-1159,-29971,-29963,-29973,-29974,-29974,-29975,-29975,-29975,-29975,-29976,-29979,-29980,-29980,-29981,-29981,-29982,-29982,-29980,-29984,-29985]} 1. e4 {[%emt 0:00:03][%cal Be2e4,Be4e5][%mdl 32]} e5 {[%emt 0:00:06]} 2. Nf3 {[%emt 0:00:04]} Nc6 {[%emt 0:00:08]} 3. d4 {[%emt 0:00:06]} exd4 {[%emt 0:00:05]} 4. Bc4 {[%emt 0:00:03]} Nf6 {[%emt 0:00:11]} 5. e5 {[%emt 0:00:10]} Ne4 {[%emt 0:00:12]} 6. Qe2 {[%emt 0:03:04]} Nc5 $1 {[%emt 0:00:10]} (6... Bb4+ $2 7. Kd1 $16) 7. O-O {[%emt 0:02:42] C56: Two Knights: 4 d4 exd4 5 0-0 Nxe4.} Ne6 {[%emt 0:04:42] is cutting edge theory.} 8. Rd1 {[%emt 0:04:35]} d5 {[%emt 0:00:37]} 9. exd6 {[%emt 0:00:25] The position is equal.} Bxd6 {[%emt 0:00:06]} 10. c3 {[%emt 0:10:01][%cal Rc3d4] [#]} dxc3 $146 {[%emt 0:02:58]} ({Predecessor:} 10... O-O 11. cxd4 Qf6 12. Bxe6 fxe6 13. Nc3 e5 14. Ne4 Qg6 15. Nxd6 cxd6 16. dxe5 Bg4 17. Qc4+ d5 18. Rxd5 Be6 19. Ng5 Rad8 {0-1 (19) Yip,C (2430)-Zhu,J (2459) chess24.com INT 2021}) 11. Nxc3 {[%emt 0:03:08][%cal Oc1f4]} O-O {[%emt 0:06:59]} 12. Ne4 {[%emt 0:05:24]} Re8 {[%emt 0:13:15]} 13. Nxd6 {[%emt 0:06:58]} (13. Bg5 $14 Qd7 14. Rac1 (14. Nxd6 cxd6 15. Qd3 Nc5 $11)) 13... cxd6 $11 {[%emt 0:00:10]} 14. Qd3 {[%emt 0:02:03] Prevents Ned4.} Ne5 {[%emt 0:11:44] Pair of Knights!} 15. Qe2 {[%emt 0:12:28]} Qc7 {[%emt 0:06:49]} 16. Nxe5 {[%emt 0:04:22]} dxe5 {[%emt 0:00:21]} 17. Bb5 {[%emt 0:01:22] Against Bd7} (17. Be3 $11) 17... Re7 {[%emt 0:05:32]} (17... Rd8 $15 18. Be3 Bd7) 18. Be3 $1 {[%emt 0:05:28] And now Rac1 would win.} Nd4 {[%emt 0:18:35]} 19. Bxd4 {[%emt 0:03:43]} exd4 {[%emt 0:00:06]} 20. Qd2 {[%emt 0:04:47]} (20. Qc4 $1 $11) 20... Qb6 $1 $15 {[%emt 0:04:41]} 21. a4 {[%emt 0:02:50][%cal Ba2a4,Ba4a5][%mdl 32]} Bd7 {[%emt 0:10:02]} (21... Bg4 $17 22. Re1 Rxe1+ 23. Rxe1 Bf5) 22. Bf1 $1 $11 {[%emt 0:02:55]} Re4 {[%emt 0:04:56]} 23. a5 {[%emt 0:02:05]} Qd6 {[%emt 0:01:58]} 24. Ra3 {[%emt 0:06:34]} Bc6 {[%emt 0:02:25]} 25. f3 {[%emt 0:03:21]} Rf4 {[%emt 0:00:32]} (25... Rh4 $1 $15 {might be stronger.} 26. g3 Rh5) 26. Qf2 {[%emt 0:02:44]} (26. a6 $1 $11) 26... Qf6 {[%emt 0:02:32]} (26... Rd8 $17) 27. Be2 {[%emt 0:05:41]} (27. a6 $1 $11) 27... Rd8 $17 {[%emt 0:00:07]} 28. a6 {[%emt 0:02:08]} b6 {[%emt 0:00:28]} 29. b4 {[%emt 0:01:25]} (29. Rad3 $142) 29... d3 {[%emt 0:01:26]} (29... Qe7 $142 30. Raa1 Qxb4) 30. Raxd3 {[%emt 0:03:38]} Rxd3 {[%emt 0:00:05]} 31. Bxd3 {[%emt 0:00:08]} Rxb4 {[%emt 0:00:58]} 32. Qd2 {[%emt 0:00:05]} Rb2 {[%emt 0:02:24]} 33. Qe3 {[%emt 0:00:49] Inhibits Qd4.} g6 $40 {[%emt 0:00:07][%mdl 128] White is in trouble.} 34. Be4 {[%emt 0:00:37]} (34. Bf1 $17 {was worth a try.}) 34... Bxe4 $19 {[%emt 0:01:01]} 35. Qxe4 {[%emt 0:00:02][%mdl 4096] Endgame KQR-KQR} Qg5 {[%emt 0:00:51][%csl Gb2][%cal Rg5g2]} 36. f4 {[%emt 0:00:06]} Qc5+ {[%emt 0:00:08]} 37. Kh1 {[%emt 0:00:07] [#]} Qc3 $2 {[%emt 0:00:55]} ({Black should try} 37... Rd2 $3 $19 {[%mdl 512]} 38. Rg1 Qd4 39. Qa8+ Kg7) 38. h3 $1 $11 {[%emt 0:00:22]} (38. Qa8+ Kg7 39. Qxa7 Qd4 $1 $17) 38... Kg7 {[%emt 0:00:23]} 39. Rd3 {[%emt 0:00:31]} (39. Qe7 $11 {keeps the balance.}) 39... Qf6 {[%emt 0:00:34] White must now prevent ...Ra2.} 40. Rd7 {[%emt 0:00:47]} Rf2 {[%emt 0:00:36]} ({Don't play} 40... Ra2 $6 41. Rxa7 h5 42. Kh2 $11) 41. Rxa7 $2 {[%emt 0:02:52][%mdl 8192]} (41. Qe5 $17) 41... Rxf4 $19 {[%emt 0:00:55]} 42. Qe3 {[%emt 0:00:57]} Rf1+ {[%emt 0:03:50]} 43. Kh2 {[%emt 0:00:01]} Qd6+ {[%emt 0:00:18]} 44. g3 {[%emt 0:00:02]} Qd5 {[%emt 0:06:02][%csl Gd5][%cal Rf1h1]} 45. g4 {[%emt 0:01:40]} g5 {[%emt 0:05:20]} 46. Kg3 {[%emt 0:00:11]} Rd1 {[%emt 0:04:54] ( -> ...Rd2)} 47. Qc3+ {[%emt 0:03:44] [#]} Kg6 $1 {[%emt 0:00:31] Black mates.} 48. Qc2+ {[%emt 0:00:04]} Rd3+ {[%emt 0:00:42]} 49. Kh2 {[%emt 0:01:10]} Qe5+ {[%emt 0:01:00]} 50. Kh1 {[%emt 0:00:26]} Qe4+ {[%emt 0:04:29]} 51. Kh2 {[%emt 0:00:29]} Qf4+ {[%emt 0:01:13]} 52. Kh1 {[%emt 0:00:22]} Qf1+ {[%emt 0:00:19]} 53. Kh2 {[%emt 0:00:11]} Qxh3+ {[%emt 0:00:07]} 54. Kg1 {[%emt 0:00:04]} Qxg4+ {[%emt 0:00:23]} 55. Kf2 {[%emt 0:00:14]} Qd4+ {[%emt 0:01:19]} 56. Ke2 {[%emt 0:00:19]} Qe4+ {[%emt 0:00:12] Weighted Error Value: White=0.46/Black=0.22 (precise)} 0-1

[Event "44th Chess Olympiad Women 2022"]
[Site "Chennai"]
[Date "2022.08.05"]
[Round "7.18"]
[White "Mirza, Diana"]
[Black "Raccanello, Marianna"]
[Result "0-1"]
[ECO "E51"]
[WhiteElo "1898"]
[BlackElo "2067"]
[Annotator "TA"]
[PlyCount "60"]
[EventDate "2022.07.29"]
[EventType "team-tourn"]
[EventCountry "IND"]
[SourceTitle "playchess.com"]
[Source "ChessBase"]
[SourceQuality "1"]
[WhiteTeam "Ireland"]
[BlackTeam "Italy"]
[WhiteTeamCountry "IRL"]
[BlackTeamCountry "ITA"]
[TimeControl "40/5400+30:1800+30"]

{[%evp 13,60,6,0,3,4,0,0,0,14,-23,14,17,15,0,0,0,6,0,9,-65,6,-50,-48,-77,5,6,5,0,6,-120,-112,-859,-866,-804,-567,-1412,-1409,-1401,-1402,-1332,-1292,-29986,-29987,-29987,-29988,-29993,-525,-29994,-29993]} 1. d4 {[%emt 0:00:03]} Nf6 {[%emt 0:00:07]} 2. c4 {[%emt 0:00:06]} e6 {[%emt 0:00:05]} 3. Nc3 {[%emt 0:00:08]} Bb4 {[%emt 0:00:06]} 4. e3 {[%emt 0:00:07]} O-O {[%emt 0:00:12]} 5. Bd2 {[%emt 0:00:11]} d5 {[%emt 0:00:13]} 6. Nf3 {[%emt 0:00:40]} b6 {[%emt 0:00:12]} 7. cxd5 {[%emt 0:00:27]} exd5 {[%emt 0:00:09]} 8. Rc1 {[%emt 0:00:10] E51: Nimzo-Indian: Rubinstein: 4...0-0 5 Nf3 d5.} Bb7 {[%emt 0:00:09]} 9. Bd3 {[%emt 0:00:49]} Be7 {[%emt 0:00:41]} 10. O-O {[%emt 0:06:03] The position is equal.} c5 {[%emt 0:00:43] [#]} 11. Bb1 $146 {[%emt 0:05:49]} ({Predecessor:} 11. dxc5 bxc5 12. Re1 Na6 13. Bb1 Rb8 14. b3 c4 15. Qe2 Nc5 16. bxc4 dxc4 17. Nd4 {1-0 (87) Artemiev,V (2700)-Aronian,L (2772) chess24.com INT 2022}) 11... Nc6 {[%emt 0:02:34]} 12. dxc5 {[%emt 0:17:12]} bxc5 {[%emt 0:19:07]} 13. e4 {[%emt 0:10:52]} Nd4 {[%emt 0:19:57]} 14. exd5 {[%emt 0:12:07]} Nxd5 {[%emt 0:02:16]} 15. Ne4 {[%emt 0:06:21]} Rc8 {[%emt 0:04:46]} 16. Ne5 {[%emt 0:07:35]} (16. Nxd4 $11 cxd4 17. Rxc8 Bxc8 18. Qc2) 16... f6 {[%emt 0:13:39]} ({Better is} 16... f5 $15 17. Ng3 Bf6) 17. Nc4 {[%emt 0:00:42]} (17. Nf3 $1 $11) 17... f5 $15 {[%emt 0:00:10]} 18. Ng3 {[%emt 0:02:36] [#]} f4 {[%emt 0:04:18] Black is more active.} (18... Nb6 $1 $17 {[%cal Rb6c4] And now ...Nxc4 would win.} 19. Na5 Ba8) 19. Ne2 $1 $11 {[%emt 0:11:13]} f3 $132 {[%emt 0:06:54][%mdl 2048] Black is not holding back} 20. Nxd4 {[%emt 0:00:06]} cxd4 {[%emt 0:01:56]} 21. gxf3 {[%emt 0:02:42] [#]} (21. Re1 $1 $11 {keeps the balance.}) 21... Bg5 $1 $17 {[%emt 0:01:52]} 22. Ba5 $2 {[%emt 0:03:51][%mdl 8192] White does not recover from this.} (22. Be4 $17) 22... Qf6 $19 {[%emt 0:00:41]} 23. Qd3 {[%emt 0:01:53]} Qh6 {[%emt 0:01:17]} 24. Rcd1 {[%emt 0:06:16]} Nf4 {[%emt 0:05:08]} 25. Qxh7+ {[%emt 0:01:59]} Qxh7 {[%emt 0:00:04]} 26. Bxh7+ {[%emt 0:00:05]} Kxh7 {[%emt 0:00:05]} 27. Nd2 {[%emt 0:01:36]} Ne2+ {[%emt 0:00:52]} 28. Kg2 {[%emt 0:00:28]} Bxd2 {[%emt 0:00:06]} 29. Rxd2 {[%emt 0:00:08]} Bxf3+ {[%emt 0:00:06]} 30. Kh3 {[%emt 0:00:12]} Rc5 {[%emt 0:00:46] Weighted Error Value: White=0.93/Black=0.33} 0-1

[Event "44th Chess Olympiad Women 2022"]
[Site "Chennai"]
[Date "2022.08.05"]
[Round "7.19"]
[White "Caballero Quijano, Mitzy Mishell"]
[Black "Azhar, Puteri Rifqah Fahada"]
[Result "1-0"]
[ECO "E63"]
[WhiteElo "2035"]
[BlackElo "1940"]
[Annotator "TA"]
[PlyCount "75"]
[EventDate "2022.07.29"]
[EventType "team-tourn"]
[EventCountry "IND"]
[SourceTitle "playchess.com"]
[Source "ChessBase"]
[SourceQuality "1"]
[WhiteTeam "Peru"]
[BlackTeam "Malaysia"]
[WhiteTeamCountry "PER"]
[BlackTeamCountry "MAS"]
[TimeControl "40/5400+30:1800+30"]

{[%evp 21,75,12,12,18,27,22,60,-19,36,39,50,43,58,72,125,137,141,111,116,102,98,109,116,104,109,104,87,16,117,88,137,128,334,363,524,523,620,581,805,650,647,642,634,633,709,695,727,724,1210,1202,1900,1829,4066,2613,29990,29991]} 1. d4 {[%emt 0:00:03]} Nf6 {[%emt 0:00:22]} 2. Nf3 {[%emt 0:00:08]} g6 {[%emt 0:00:53]} 3. c4 {[%emt 0:00:06]} Bg7 {[%emt 0:00:17]} 4. g3 {[%emt 0:00:05]} d6 {[%emt 0:00:35]} 5. Bg2 {[%emt 0:00:07]} O-O {[%emt 0:00:58]} 6. Nc3 {[%emt 0:00:13]} Nc6 {[%emt 0:01:05]} 7. O-O {[%emt 0:00:07]} a6 {[%emt 0:02:10]} 8. h3 {[%emt 0:00:09]} Rb8 {[%emt 0:01:16]} 9. e4 {[%emt 0:00:14]} b5 {[%emt 0:05:19]} 10. cxb5 {[%emt 0:00:06] 10.d5 deserves study.} axb5 {[%emt 0:00:05]} 11. Re1 {[%emt 0:00:09]} Nd7 {[%emt 0:07:12]} 12. Bg5 {[%emt 0:00:12] E63: King's Indian: Fianchetto: Panno Variation with 7...a6.} h6 {[%emt 0:01:16]} 13. Be3 {[%emt 0:00:16]} e5 {[%emt 0:04:53] [#]} 14. d5 $146 {[%emt 0:03:43]} (14. Rc1 $1 $14) ({Predecessor:} 14. Rc1 exd4 15. Nxd4 Nxd4 16. Bxd4 Ne5 17. f4 c5 18. Bf2 Nc6 19. e5 Nd4 20. exd6 {1-0 (40) Woodward,A (1899)-Gutla,A (1910) ICC INT 2020}) 14... Na5 {[%emt 0:02:02]} (14... Ne7 $11) 15. b3 $14 {[%emt 0:02:05]} f5 {[%emt 0:03:58]} 16. exf5 {[%emt 0:15:57]} gxf5 {[%emt 0:01:16]} 17. Nh4 $36 {[%emt 0:00:23][%mdl 2048] White is on the roll.} Qf6 {[%emt 0:01:29]} (17... b4 $142 18. Na4 Rf7) 18. Rc1 $1 $16 {[%emt 0:09:49]} b4 {[%emt 0:12:01]} 19. Na4 {[%emt 0:00:42]} f4 {[%emt 0:04:13]} 20. Bd2 {[%emt 0:00:23]} Nc5 {[%emt 0:06:41]} (20... fxg3 $2 21. fxg3 Ba6 22. Kh2 $18) 21. Nxc5 {[%emt 0:00:43]} dxc5 {[%emt 0:00:06]} (21... fxg3 $2 22. fxg3 $1 dxc5 23. Rf1 $18) 22. Kh2 {[%emt 0:00:39]} Nb7 {[%emt 0:05:40]} 23. Qh5 {[%emt 0:04:54] Strongly threatening gxf4.} Bd7 {[%emt 0:04:15]} 24. Rc2 {[%emt 0:04:34]} (24. gxf4 $16 exf4 25. d6 (25. Ng6 Be8 $16)) 24... Be8 {[%emt 0:07:14]} (24... Qg5 $11 {remains equal.} 25. Qg6 Nd6) 25. Qe2 {[%emt 0:00:32] White is more active.} Rd8 {[%emt 0:01:13] [#]} ({Black should play} 25... Bd7) 26. Bc1 $1 {[%emt 0:02:01]} c6 $2 {[%emt 0:10:22] [#] This move loses the game for Black.} (26... Bd7 $16 {was necessary.}) 27. Qa6 $1 $18 {[%emt 0:02:10][%csl LRb7,LRc6][%cal Rd5c6]} Rf7 {[%emt 0:09:11]} (27... cxd5 {keeps fighting.} 28. Qxb7 Qd6) 28. dxc6 {[%emt 0:01:47][%cal Bd5c6,Bc6c7][%mdl 32]} Rc7 {[%emt 0:02:26]} 29. Bb2 {[%emt 0:01:24]} Re7 {[%emt 0:02:53]} 30. Qc4+ {[%emt 0:02:30]} Bf7 {[%emt 0:00:13]} 31. Qe2 {[%emt 0:00:19]} Nd6 {[%emt 0:02:23]} 32. Rxc5 {[%emt 0:00:15]} Rde8 {[%emt 0:00:55]} 33. c7 {[%emt 0:02:45]} fxg3+ {[%emt 0:00:58]} 34. fxg3 {[%emt 0:00:08]} Nc8 {[%emt 0:00:40]} 35. Rf1 {[%emt 0:01:17]} Qb6 {[%emt 0:00:31]} 36. Rc6 {[%emt 0:00:09]} Qa5 {[%emt 0:00:13]} 37. Nf5 {[%emt 0:01:16][%csl LRe7,LRh6] Qg4 would kill now.} Rxc7 {[%emt 0:00:46]} 38. Qg4 {[%emt 0:02:36] Weighted Error Value: White=0.16 (very precise) /Black=0.69} 1-0

[Event "44th Chess Olympiad Women 2022"]
[Site "Chennai"]
[Date "2022.08.05"]
[Round "7.20"]
[White "Mariroh, Fariha"]
[Black "Guillen Cristobal, Sandra N"]
[Result "1/2-1/2"]
[ECO "B38"]
[WhiteElo "1839"]
[BlackElo "1962"]
[Annotator "TA"]
[PlyCount "121"]
[EventDate "2022.07.29"]
[EventType "team-tourn"]
[EventCountry "IND"]
[SourceTitle "playchess.com"]
[Source "ChessBase"]
[SourceQuality "1"]
[WhiteTeam "Indonesia"]
[BlackTeam "Mexico"]
[WhiteTeamCountry "INA"]
[BlackTeamCountry "MEX"]
[TimeControl "40/5400+30:1800+30"]

{[%evp 28,121,52,49,53,32,47,48,42,48,46,42,43,50,79,70,76,78,116,77,85,53,68,68,136,144,143,148,136,138,130,24,11,15,79,15,27,0,7,4,16,0,0,-45,-38,-45,-43,-45,-15,-16,0,0,0,0,0,-7,0,0,7,0,0,0,52,49,56,53,88,83,118,130,136,96,135,96,124,124,124,117,135,135,143,135,385,95,90,11,16,0,86,0,0,0,81,0,0,0]} 1. e4 {[%emt 0:00:11]} c5 {[%emt 0:00:08]} 2. Nf3 {[%emt 0:00:00]} Nc6 {[%emt 0:00:08]} 3. d4 {[%emt 0:00:04]} cxd4 {[%emt 0:00:06]} 4. Nxd4 {[%emt 0:00:05]} g6 {[%emt 0:00:06]} 5. c4 {[%emt 0:00:07]} Bg7 {[%emt 0:00:05]} 6. Be3 {[%emt 0:00:10]} Nf6 {[%emt 0:00:09]} 7. Nc3 {[%emt 0:00:05]} O-O {[%emt 0:00:06]} 8. Be2 {[%emt 0:00:23]} d6 {[%emt 0:00:09]} 9. O-O {[%emt 0:00:25]} Bd7 {[%emt 0:00:06]} 10. Qd2 {[%emt 0:03:20]} Nxd4 {[%emt 0:00:18]} 11. Bxd4 {[%emt 0:00:08]} Bc6 {[%emt 0:00:05]} 12. f3 {[%emt 0:00:14]} a5 {[%emt 0:00:08]} 13. b3 {[%emt 0:00:45]} Nd7 {[%emt 0:00:59]} 14. Bf2 {[%emt 0:01:02]} Nc5 {[%emt 0:02:33]} 15. Rab1 {[%emt 0:00:40]} Be5 {[%emt 0:06:35] B38: Sicilian: Maroczy Bind with 5...Bg7 and 7...0-0.} 16. Bd1 {[%emt 0:02:32]} e6 {[%emt 0:01:10]} 17. Bc2 {[%emt 0:01:12]} Qf6 {[%emt 0:04:06] White is slightly better.} 18. Ne2 {[%emt 0:04:29] [#] Threatens to win with f4.} Qe7 $146 {[%emt 0:12:26]} ({Predecessor:} 18... g5 19. Be3 h6 20. Ng3 Qg6 21. Rbe1 Bf4 22. Bxf4 gxf4 23. Qxf4 e5 24. Qf5 Ne6 25. Qxg6+ fxg6 {0-1 (55) Banusz,T (2628)-Godzwon,I (2347) Chess.com INT 2020}) 19. Nd4 {[%emt 0:12:08]} Rfd8 {[%emt 0:01:37]} 20. Rfe1 {[%emt 0:08:56]} g5 {[%emt 0:06:57]} 21. Be3 {[%emt 0:10:35]} f6 {[%emt 0:08:22]} 22. a3 {[%emt 0:05:41]} Qf7 {[%emt 0:12:00]} 23. Qf2 {[%emt 0:08:41]} Be8 {[%emt 0:05:31]} 24. Kh1 {[%emt 0:04:09]} Qe7 {[%emt 0:06:48]} 25. g3 {[%emt 0:07:38]} Bg6 {[%emt 0:01:06] [#]} (25... Rdc8 $14) 26. Nb5 $1 $16 {[%emt 0:06:15]} Be8 {[%emt 0:21:23]} 27. f4 {[%emt 0:01:33]} Bxb5 {[%emt 0:00:24]} 28. fxe5 {[%emt 0:00:24]} ({Resist} 28. cxb5 Bc3 $16) 28... Bc6 {[%emt 0:00:29]} 29. Bxc5 {[%emt 0:03:52]} (29. exf6 $16 Nxe4 30. Bxe4 (30. fxe7 Nxf2+ 31. Kg1 Nh3+ 32. Kf1 Re8 $16) 30... Bxe4+ 31. Kg1) 29... dxc5 $11 {[%emt 0:00:10]} 30. exf6 {[%emt 0:00:24]} Qd6 {[%emt 0:02:41]} (30... Rf8 $11 {keeps the balance.}) 31. Kg1 {[%emt 0:09:08] White is more active.} ({White should play} 31. Re2 $16) 31... Qe5 $1 {[%emt 0:00:47]} 32. Rbd1 {[%emt 0:01:59]} Rf8 {[%emt 0:01:19]} 33. Rf1 {[%emt 0:00:22]} Rf7 {[%emt 0:00:19]} 34. Qe3 {[%emt 0:06:25]} Raf8 {[%emt 0:00:45]} 35. Bd3 {[%emt 0:01:05]} Rxf6 {[%emt 0:00:39]} 36. Rxf6 {[%emt 0:00:09]} Rxf6 {[%emt 0:00:05]} 37. Bc2 {[%emt 0:01:07]} Rf8 {[%emt 0:00:54]} 38. Qd2 {[%emt 0:00:17]} Kg7 {[%emt 0:02:57]} 39. Qxa5 {[%emt 0:00:56]} Rf7 {[%emt 0:02:14]} 40. Qd8 {[%emt 0:01:23]} h6 {[%emt 0:00:14]} 41. Qd6 {[%emt 0:31:08]} Qc3 {[%emt 0:31:07] ( -> ...Qe3+)} 42. Qd3 {[%emt 0:00:32] Inhibits Qe3+.} Qe5 {[%emt 0:01:48]} 43. Rf1 {[%emt 0:00:00]} Rxf1+ {[%emt 0:00:00]} 44. Kxf1 {[%emt 0:00:00][%mdl 4096] Endgame KQB-KQB} h5 {[%emt 0:00:00]} (44... Qa1+ $11 45. Bb1 Qxa3) 45. b4 {[%emt 0:00:00]} cxb4 {[%emt 0:00:00]} 46. axb4 {[%emt 0:00:00]} b5 {[%emt 0:00:00]} 47. c5 {[%emt 0:00:00]} h4 {[%emt 0:00:00]} 48. Ke2 {[%emt 0:00:00]} hxg3 {[%emt 0:00:00]} 49. hxg3 {[%emt 0:00:00]} Qb2 {[%emt 0:00:00]} 50. Qd2 {[%emt 0:00:00]} Qe5 {[%emt 0:00:00]} 51. Qe3 {[%emt 0:00:00]} Be8 {[%emt 0:00:00]} 52. Kd2 {[%emt 0:00:00]} Kf6 {[%emt 0:00:00]} 53. Qf3+ {[%emt 0:00:00]} Ke7 {[%emt 0:00:06]} 54. Qc3 {[%emt 0:00:00] Prevents Qd4+.} Kf6 {[%emt 0:01:30] [#]} (54... Qxc3+ $16 55. Kxc3 e5) 55. Qd3 $2 {[%emt 0:00:00]} (55. c6 $1 $18 {[%cal Rc6c7] is the precise move to win.}) 55... Ke7 {[%emt 0:01:19]} 56. Qa3 {[%emt 0:03:52]} (56. Ke1 $16) 56... Qd4+ {[%emt 0:00:51]} 57. Kc1 {[%emt 0:00:06]} Kf6 {[%emt 0:02:02]} (57... g4 $11 {remains equal.}) 58. Qf3+ {[%emt 0:01:28]} (58. Qb2 $16 Ke5 59. Bb1) 58... Ke7 {[%emt 0:00:32]} 59. Qa3 {[%emt 0:01:29]} (59. g4 $11) 59... Kf6 $16 {[%emt 0:00:11]} 60. Qf3+ {[%emt 0:00:32]} (60. Qd3 $16 Ke5 61. Qd2 Qxd2+ 62. Kxd2) 60... Ke7 $11 {[%emt 0:00:31]} 61. Qa3 {[%emt 0:01:07] Weighted Error Value: White=0.29 (precise) /Black=0.21 (precise)} 1/2-1/2